Cogmind - Beta 15 @@@ ROGUE MODE // 2025.06.18 @ 10:45:22 Player: Falconhoof Result: Destroyed by S-10 Pest with Light Assault Rifle Performance ------------- Evolutions (0) 0 Regions Visited (1) 200 Robots Destroyed (16) 80 Value Destroyed (411) 411 Prototype IDs (2) 40 Alien Tech Used (0) 0 Bonus (0) 0 TOTAL SCORE: 731 Bonus ------- None Cogmind --------- Core Integrity 0/250 Matter 300/300 Energy 160/160 System Corruption 0% Temperature Cool (16) Movement Rolling (90) Location -10/Materials Parts ------- > --- POWER (1) -------- Light Nuclear Core > --- PROPULSION (2) --- Wheel Compact Wheel > --- UTILITY (2) ------ Improved Heat Sink Small Storage Unit > --- WEAPON (2) ------- Beam Cannon Beam Cannon > --- INVENTORY (8) ---- Wheel Medium Matter Pod (100) EM Pulse Gun Beam Cannon Beam Cannon Beam Cannon Peak State ------------ > --- POWER ------------ Light Nuclear Core > --- PROPULSION ------- Wheel Wheel > --- UTILITY ---------- Improved Heat Sink Small Storage Unit > --- WEAPON ----------- Small Laser Small Laser > --- INVENTORY -------- Medium Matter Pod Light Assault Rifle [Rating: 11] Favorites ----------- Power Light Nuclear Core Engine Light Ion Engine Power Core Light Nuclear Core Propulsion Wheel Wheel Wheel Utility Small Storage Unit Device Improved Heat Sink Storage Small Storage Unit Weapon Small Laser Energy Gun Small Laser Energy Cannon Beam Cannon Ballistic Gun Light Assault Rifle Launcher Grenade Launcher Build | -11 -10 ------- Run | Yrd Mat Slots Evolved . | . . Power . | . . Propulsion . | . . Utility . | . . Weapon . | . . Parts Attached 17 | 6 11 Power 3 | 1 2 Engine 2 | 1 1 Core 1 | . 1 Reactor . | . . Propulsion 4 | 2 2 Treads . | . . Leg . | . . Wheel 4 | 2 2 Hover . | . . Flight . | . . Utility 3 | 1 2 Device 1 | . 1 Storage 2 | 1 1 Processor . | . . Hackware . | . . Protection . | . . Artifact . | . . Weapon 7 | 2 5 Energy Gun 2 | . 2 Energy Cannon 2 | . 2 Ballistic Gun 2 | 2 . Ballistic Cannon . | . . Launcher 1 | . 1 Special Weapon . | . . Impact Weapon . | . . Slashing Weapon . | . . Piercing Weapon . | . . Special Melee Weapon . | . . Unidentified Prototypes . | . . Parts Lost 5 | . 5 Power 2 | . 2 Propulsion 1 | . 1 Utility . | . . Weapon 2 | . 2 Highest Loss Streak 3 | . 3 To Critical Strikes . | . . Average Backups 3 | 1 3 Power . | . . Propulsion . | . . Utility . | . . Weapon 1 | . 1 Tool/Special . | . . Unused Backups 4 | . 4 Power . | . . Propulsion . | . . Utility . | . . Weapon 4 | . 4 Tool/Special . | . . Average Slot Usage (%) 91 | . 91 Engine 6 | . 6 Core 7 | . 7 Wheel 23 | . 23 Device 7 | . 7 Storage 19 | . 19 Energy Gun 10 | . 10 Energy Cannon 4 | . 4 Ballistic Gun 11 | . 11 Peak Build Rating 11 | 6 11 Average Rating 8 | 4 8 On Entrance 3 | . 6 Naked Turns . | . . Heaviest Build 17 | 11 17 Greatest Support 26 | 20 26 Greatest Overweight (x) 1 | . 1 Average Overweight (x) . | . . Largest Inventory Capacity 8 | 8 8 Average Capacity 7 | 7 8 Most Carried 6 | 2 6 Average Carried 3 | 1 3 Final Capacity 8 | 8 8 Final Carried 6 | 2 6 Class Distribution -------------------- 100% | Mutant Dominant Class ---------------- Mutant | -10/Materials Resources | -11 -10 ----------- Run | Yrd Mat Matter Collected 631 | 208 423 Remotely . | . . Salvage Created 487 | . 487 Parts 28 | . 28 Haulers Intercepted 2 | . 2 Recyclers Shooed . | . . Parts Field Recycled . | . . Retrieved Matter . | . . Parts Self-Destructed . | . . Prevented . | . . Kills | -11 -10 ------- Run | Yrd Mat Combat Hostiles Destroyed 13 | . 13 Guns 10 | . 10 AOE 3 | . 3 Classes Destroyed 4 | . 4 Worker 1 | . 1 Hauler 2 | . 2 Swarmer 3 | . 3 Grunt 10 | . 10 Best Kill Streak 5 | . 5 Combat Bots Only 5 | . 5 Max Kills in Single Turn 2 | . 2 Gunslinging . | . . Exploded 2 | . 2 Melee . | . . Uniques/NPCs Destroyed . | . . Combat | -11 -10 -------- Run | Yrd Mat Hostile Shots Fired 65 | . 65 Missed 16 | . 16 Hits 49 | . 49 Projectile 49 | . 49 Damage Taken 793 | . 793 Core 257 | . 257 Absorbed by Shields . | . . Core Remaining (%) 100 | 100 . Volleys Fired 46 | . 46 Largest 2 | . 2 Hottest 120 | . 120 Shots Fired 87 | . 87 Gun 82 | . 82 Cannon 2 | . 2 Launcher 3 | . 3 Special . | . . Kinetic 60 | . 60 Thermal 24 | . 24 Explosive 3 | . 3 Electromagnetic . | . . Robot Hit Streak 10 | . 10 Robot Miss Streak 2 | . 2 Penetration Max . | . . Secondary Targets 2 | . 2 Max Gunslinging Chain 1 | . 1 Shots Hit Robots 60 | . 60 Core Hits 34 | . 34 Critical Kills . | . . Critical Parts Destroyed . | . . Critical Strikes . | . . Melee Attacks . | . . Impact . | . . Slashing . | . . Piercing . | . . Sneak Attacks . | . . Combat Hostiles . | . . Follow-up Attacks . | . . Damage Inflicted 1051 | . 1051 Guns 658 | . 658 Cannons 17 | . 17 Explosions 370 | . 370 Melee . | . . Ramming 6 | . 6 Kinetic 481 | . 481 Thermal 194 | . 194 Explosive 370 | . 370 Electromagnetic . | . . Impact . | . . Slashing . | . . Piercing . | . . Highest Corruption . | . . Average Corruption . | . . Corruption Purged . | . . Corruption Blocked . | . . Overload Shots . | . . Overflow Damage 40 | . 40 Projectiles . | . . Explosions 40 | . 40 Melee . | . . Knockbacks . | . . Impact . | . . Kinetic . | . . Secondary . | . . Self-Inflicted Damage 192 | . 192 Shots 4 | . 4 Rammed 1 | . 1 Targets Rammed 1 | . 1 Kicked . | . . Crushed . | . . Highest Temperature 31 | . 31 Average Temperature 9 | . 9 Received Heat Transfer 258 | . 258 Siege Activations . | . . Martial Activations . | . . Shielding Activations . | . . Robots Disrupted . | . . Combat Hostiles . | . . Robots Corrupted . | . . Combat Hostiles . | . . Parts Fried . | . . Impact Corruptions . | . . Robots Melted . | . . Combat Hostiles . | . . Parts Melted . | . . Heat Transferred 437 | . 437 Parts Sabotaged . | . . Parts Stolen . | . . Parts Stripped . | . . Power Chain Reactions . | . . Alert | -11 -10 ------- Run | Yrd Mat Maximum Alert Level 1 | . 1 Low Security (%) 83 | 100 81 Level 1 16 | . 18 Level 2 . | . . Level 3 . | . . Level 4 . | . . Level 5 . | . . High Security . | . . Max Security . | . . Peak Influence 225 | . 225 Initial . | . . Average 75 | . 84 Influence Increases 382 | . 382 Destroy 0b10 Robot/C 260 | . 260 Destroy 0b10 Robot/NC 15 | . 15 Destroy Leader 54 | . 54 Successful Hack 19 | . 19 Disable Machine 15 | . 15 Destroy Structure 19 | . 19 Influence Decreases 382 | . 382 Time Decay 182 | . 182 Lost Part 50 | . 50 Purge Threat 150 | . 150 Squads Dispatched 4 | . 4 Investigation 3 | . 3 Extermination . | . . Reinforcement 1 | . 1 Assault . | . . Garrison . | . . Intercept . | . . Searches Triggered . | . . Construction Impeded . | . . Haulers Reinforced . | . . Active Scanning Responses . | . . Cargo Convoy Interrupts . | . . Stealth | -11 -10 --------- Run | Yrd Mat Distress Signals . | . . Communications Jammed . | . . Distress Signals . | . . Times Spotted 23 | . 23 Peak Tracking Total 6 | . 6 Tactical Retreats . | . . Traps | -11 -10 ------- Run | Yrd Mat Traps Triggered 3 | . 3 Indirectly . | . . Trap Hack Attempts . | . . Triggered . | . . Disarmed . | . . Reprogrammed . | . . Reused . | . . Traps Extracted . | . . Installed . | . . Triggered . | . . Machines | -11 -10 ---------- Run | Yrd Mat Machines Disabled 1 | . 1 Max in Single Turn 1 | . 1 Machines Repaired . | . . Machines Dismantled . | . . Machines Sabotaged . | . . Overloaded Fab Kills . | . . Hacking | -11 -10 --------- Run | Yrd Mat Machines Accessed 5 | . 5 Terminals 4 | . 4 Fabricators . | . . Repair Stations . | . . Recycling Units 1 | . 1 Scanalyzers . | . . Garrison Access . | . . Total Hacks 15 | . 15 Successful 6 | . 6 Failed 9 | . 9 Catastrophic . | . . Database Lockouts . | . . Manual . | . . Terminals 13 | . 13 Fabricators . | . . Repair Stations . | . . Recycling Units 2 | . 2 Scanalyzers . | . . Garrison Access . | . . Terminal Hacks 6 | . 6 Prototype ID Bank 1 | . 1 Alert Level 1 | . 1 Unreport Threat 1 | . 1 Locate Traps 1 | . 1 Transport Status 1 | . 1 Investigation Status 1 | . 1 Fabricator Hacks . | . . Repair Station Hacks . | . . Recycling Unit Hacks . | . . Scanalyzer . | . . Garrison Access Hacks . | . . Unauthorized Hacks . | . . Terminals . | . . Fabricators . | . . Repair Stations . | . . Recycling Units . | . . Scanalyzers . | . . Garrison Access . | . . Data Cores Recovered . | . . Used . | . . Hacking Detections 4 | . 4 Full Trace Events 2 | . 2 Feedback Events . | . . Feedback Blocked . | . . Robot Schematics Acquired . | . . Robots Built . | . . Authchips . | . . Time . | . . Total Robot Build Rating . | . . Part Schematics Acquired . | . . Parts Built . | . . Authchips . | . . Time . | . . Total Part Build Rating . | . . Parts Repaired . | . . Time . | . . Parts Recycled . | . . Recycled Matter . | . . Retrieved Matter . | . . Retrieved Components . | . . Parts Scanalyzed . | . . Part Schematics Acquired . | . . Parts Damaged . | . . Bothacking | -11 -10 ------------ Run | Yrd Mat Used RIF Installer . | . . Robots Hacked . | . . Non-combat . | . . Combat . | . . Robot Hacks Applied . | . . Relay Couplers Released . | . . Fabnet Peak Effective % . | . . Robots Rewired . | . . Allies Hacked . | . . Hacks Repelled . | . . Allies | -11 -10 -------- Run | Yrd Mat Total Allies . | . . Largest Group . | . . Highest-Rated Group . | . . Highest-Rated Ally . | . . Total Orders . | . . Ally Attacks . | . . Total Damage . | . . Kills . | . . Allies Corrupted . | . . Allies Melted . | . . Intel | -11 -10 ------- Run | Yrd Mat Active Infowar (turns) . | . . Robot Analysis Total . | . . Derelict Logs Recovered . | . . Drone Launches . | . . Drone Recoveries . | . . Exploration | -11 -10 ------------- Run | Yrd Mat Turns Passed 621 | 62 559 Spaces Moved 450 | 65 385 Core 9 | 9 . Treads . | . . Legs . | . . Wheels 441 | 56 385 Hover . | . . Flight . | . . Fastest Speed 50 | 50 80 Average Speed 86 | 75 87 Slowest Speed 100 | 80 100 Overloaded Moves . | . . Propulsion Burnouts . | . . Robots Hopped . | . . Potential Cave-ins . | . . Cave-ins Triggered 1 | . 1 Exploration Rate (%) 32 | 3 62 Regions Visited 1 Branch Regions . Pre-discovered Areas . | . . Known Exits Taken . | . . Unknown Exits Taken 1 | 1 . Scrap Searched . | . . Spaces Dug . | . . Terrain Destroyed 40 | . 40 Melee . | . . Projectile . | . . AOE 40 | . 40 Terrain Rammed . | . . Walls Destroyed . | . . Machines Disabled . | . . Actions | -11 -10 --------- Run | Yrd Mat Total 598 | 74 524 Wait 62 | . 62 Move 449 | 64 385 Hop . | . . Pick Up 10 | 3 7 Fast Attach 16 | 6 10 Attach 5 | . 5 Detach 5 | . 5 Swap . | . . Drop 4 | 1 3 Fire 46 | . 46 Melee . | . . Ram 1 | . 1 Kick . | . . Crush . | . . Escape Stasis . | . . Rewire . | . . Trap . | . . Miscellaneous . | . . Route ------- -11/Scrapyard -10/Materials (discovered 1 exit: [*Min]) History --------- Turn | Location | Event 23 | -11/Scrapyard | Discovered new exit (range 16) 63 | -11/Scrapyard | Entered Materials 143 | -10/Materials | Discovered new exit (range 16) 297 | -10/Materials | Core integrity fell below 50% 298 | -10/Materials | Lost 3 parts (1p1n1w) 303 | -10/Materials | Core integrity fell below 20% 305 | -10/Materials | Crushed by falling debris 334 | -10/Materials | Build established: Mutant 622 | -10/Materials | Destroyed by S-10 Pest with Light Assault Rifle Last Messages --------------- the floor. Sml. Laser severed. Wheel severed. Acquired Lgt. Nuclear Core. Acquired Sml. Laser. T-07 Excavator is excavating. Acquired Sml. Laser. Acquired Wheel. Connecting with Recycling Unit... ALERT: Suspicious activity at Recycling Unit M001. Dispatching Investigation squad. Acquired Beam Cannon. Dropped Sml. Laser. Acquired Beam Cannon. Dropped Lgt. Assault Rifle. Acquired Beam Cannon. K-01 Serf cleans the Atomic Centrifuge. K-01 Serf collects debris. K-01 Serf cleans the Atomic Centrifuge. Acquired 87 matter. Map ----- +----------------------------------------------------+ | | | | | | | | | | | | | | | | | | | ?????????????????????????????????????????????????? | | ?????????????????????????????????????????????????? | | ?????????????????????????????????????????????????? | | ?????????????????????????????????????????????????? | | ?????????????????????????????????????????????????? | | ?????????????????????????????????????????????????? | | ???????????????????????????????########??????????? | | ???????????????????????????????# #??????????? | | ????????????????????????######## #??????????? | | ?????????????###+######## # [[ #??????????? | | ?????????????? ##""" # [[ #??????????? | | ???????????????? ##""" # %#??????????? | | ????????????????? ##""" # #??????????? | | ??????????????????# ## ###+####??????????? | | ??????????????????# ## # #???????????? | | ################### #####+### #???????##### | | gsss@ #???????# | | #################/##### #???????# | | #????????????# #??# ]] #???????# "" | | #????????????#"" #??# #???????# """ | | #????????????#"Y #??# ]] #???????# """ | | #????????????#"" #??# #???????# """ | | #????????????# #??# #???????# "" | | ### #????????????# #??# #???????# | | #? ????????????# #??# ###???????# | | #? ###???????????#######??# #???????####### | | #?#???????????????????????#+##### #???????# | | #????????????????########???????# ######### | | ########?????????# #???????# ## # """ | | #?????????# #??????? ## # """ | | #?????????# #???????# ## """ # """ | | +?????????# #???????# ## """ # | | #?????????#!! #???????# ## """ # | | #?????????#! ######### ## = !####### | | #?????????#####+## # #####+######### | | +????????#### """ | | #???????##! < "T" | | #???????#! | | #???????#! ## #######/#### | | ^ #???????#! ## "|"|" #??# # """ | | #???????#! ##""|"|""#??# """ # """ | +----------------------------------------------------+ Best States ------------- Heat Dissipation 39 Energy Generation 14 Energy Capacity 250 Matter Stores 368 Matter Capacity 400 Sight Range 16 Terrain Scan Density 10 Evasion (%) 44 Item Schematics ----------------- None Robot Schematics ------------------ None Fabricated ------------ Nothing Repaired ---------- Nothing Alien Tech Used ----------------- None Achievements -------------- None Challenges ------------ None Game ------ Seed ExpertDamperStatue Manual? 0 Play Time 00:17:50 Cumulative 127.4 hours Start 2025.06.18 @ 10:31:11 End 2025.06.18 @ 10:45:22 Sessions 1 Manual Loads 0 Difficulty Rogue Special Mode None Game No. 66 Rogue 66 Adventurer 0 Explorer 0 Win Type - Total 0 Types 0/0/0/0/0/0/0/0/0/0 Lore% 17 Gallery% 31 Achievement% 26 Wizard Run 0 Options --------- Layout 1 ASCII 0 Keyboard 0 Movement Numpad Keybinds 0 Fullscreen 1 Font 16/SmallcapsGlow Map View 50x40 Zoom Use 0% Tactical HUD 0 Map Filters NONE Filters NONE Steam SD RUN: 13f6374b-3cff-4ae0-905c-6de4bbf57ff2